[Event "1st Welsh Masters 2019"]
[Site "Bridgend"]
[Date "2019.08.29"]
[Round "7.4"]
[White "Willow, Jonah B"]
[Black "Rudd, Jack"]
[Result "1/2-1/2"]
[ECO "B17"]
[WhiteElo "2326"]
[BlackElo "2281"]
[Annotator "NA"]
[PlyCount "257"]
[EventDate "2019.08.26"]
[EventType "tourn"]
[EventCountry "WLS"]
[SourceTitle "playchess.com"]
[Source "ChessBase"]
[SourceQuality "1"]
[TimeControl "5400+30"]

1. e4 {[%emt 0:00:00]} c6 {[%emt 0:00:00]} 2. d4 {[%emt 0:00:00]} d5 {[%emt 0:00:00]} 3. Nc3 {[%emt 0:00:00]} dxe4 {[%emt 0:00:00]} 4. Nxe4 {[%emt 0:00:00]} Nd7 {[%emt 0:00:00]} 5. Ng5 {[%emt 0:00:05]} Ngf6 {[%emt 0:00:00]} 6. Bd3 {[%emt 0:00:38]} e6 {[%emt 0:00:21]} 7. N1f3 {[%emt 0:00:05]} Bd6 {[%emt 0:00:36]} 8. Qe2 {[%emt 0:00:05]} h6 {[%emt 0:01:20]} 9. Ne4 {[%emt 0:00:04]} Nxe4 {[%emt 0:00:10]} 10. Qxe4 {[%emt 0:00:04]} Nf6 {[%emt 0:00:17]} 11. Qe2 {[%emt 0:00:04]} c5 {[%emt 0:00:26]} 12. dxc5 {[%emt 0:03:27]} Bxc5 {[%emt 0:00:25] B17: Caro-Kann: Modern Line (4...Nd7)} 13. Bd2 {[%emt 0:01:26]} Qd5 {[%emt 0:03:09] [#]} 14. c4 $146 {[%emt 0:04:11]} ({Predecessor:} 14. b4 Be7 15. c4 Qd8 16. O-O O-O 17. Rfd1 {0-1 (34) Tseshkovsky,V (2545)-Arkell,K (2521) Hastings 2003}) 14... Qc6 {[%emt 0:00:38]} 15. b4 {[%emt 0:07:59]} Be7 {[%emt 0:00:21]} 16. Ne5 {[%emt 0:00:42]} Qc7 {[%emt 0:03:09]} 17. O-O {[%emt 0:03:03]} O-O {[%emt 0:01:19]} 18. Bf4 {[%emt 0:01:21]} Qb6 {[%emt 0:00:09]} 19. a3 {[%emt 0:01:03]} a5 {[%emt 0:00:09]} 20. c5 {[%emt 0:05:57]} Qd8 {[%emt 0:00:35]} 21. Rad1 {[%emt 0:32:19]} Nd5 {[%emt 0:00:21]} 22. Bd2 {[%emt 0:11:14]} Qc7 {[%emt 0:00:55]} 23. Bc4 {[%emt 0:01:55]} axb4 {[%emt 0:00:37]} 24. axb4 {[%emt 0:00:49]} b6 {[%emt 0:00:31]} 25. Rc1 {[%emt 0:04:29]} (25. Ng4 $14 Rd8 {[#]} 26. Nxh6+ $1 {[%mdl 512]} gxh6 27. Bxh6) 25... bxc5 {[%emt 0:00:36]} 26. Nd3 {[%emt 0:01:01]} (26. Rfe1 $11) 26... Nb6 {[%emt 0:01:43]} ({Black should try} 26... Nxb4 $17 27. Bxb4 cxb4) 27. Bf4 {[%emt 0:04:55]} (27. Nxc5 $11 {was the only way to keep the balance.} Nxc4 28. Rxc4) 27... Qd8 {[%emt 0:00:47]} 28. Nxc5 {[%emt 0:04:49]} Bxc5 {[%emt 0:00:17]} 29. bxc5 {[%emt 0:00:04]} Nxc4 {[%emt 0:00:08]} 30. Rfd1 $1 {[%emt 0:00:28]} Qf6 {[%emt 0:01:30]} ({Better is} 30... Qe8 $1 $15 31. Rxc4 Ba6) 31. Qxc4 {[%emt 0:00:21]} Bb7 $1 {[%emt 0:00:15]} 32. Bd6 {[%emt 0:00:51]} Rfc8 {[%emt 0:00:32]} 33. Qg4 {[%emt 0:00:50]} Bc6 {[%emt 0:01:02]} 34. Qg3 {[%emt 0:00:19]} Qf5 {[%emt 0:01:52]} 35. h3 {[%emt 0:02:06]} f6 {[%emt 0:00:46]} 36. Rc4 {[%emt 0:00:56]} e5 {[%emt 0:02:04]} 37. Rg4 {[%emt 0:00:34]} Ra7 {[%emt 0:00:26]} 38. Rb4 {[%emt 0:03:57]} Kh7 {[%emt 0:01:01]} 39. Qg4 {[%emt 0:01:18]} Qxg4 {[%emt 0:01:00]} 40. hxg4 {[%emt 0:00:24]} Ra2 {[%emt 0:01:43]} 41. Rdb1 {[%emt 0:00:28]} Rc2 {[%emt 0:02:42]} 42. R1b2 {[%emt 0:02:39]} Rc1+ {[%emt 0:00:46]} 43. Kh2 {[%emt 0:00:04]} Ra8 {[%emt 0:01:44]} 44. Rb6 {[%emt 0:01:12]} Bd7 {[%emt 0:00:34]} 45. f3 {[%emt 0:00:32]} e4 {[%emt 0:00:33]} 46. Rb7 {[%emt 0:01:00]} Bc6 {[%emt 0:00:14]} 47. Rc7 {[%emt 0:00:28]} Bd5 {[%emt 0:00:09]} 48. fxe4 {[%emt 0:02:00]} Bxe4 {[%emt 0:00:09]} 49. Re2 {[%emt 0:00:08]} Rc4 {[%emt 0:00:10]} 50. Re7 {[%emt 0:01:02]} Bd5 {[%emt 0:00:20]} 51. Rd2 {[%emt 0:00:34]} Bc6 {[%emt 0:00:09]} 52. Rc7 {[%emt 0:00:14]} Be4 {[%emt 0:00:08]} 53. Bg3 {[%emt 0:01:06]} Ra3 {[%emt 0:01:37]} 54. Bh4 {[%emt 0:00:52]} Bd3 {[%emt 0:00:59]} 55. Bxf6 {[%emt 0:00:38]} Rxg4 {[%emt 0:00:07]} 56. c6 {[%emt 0:00:36]} Be4 {[%emt 0:00:09]} 57. Be5 {[%emt 0:00:24]} (57. Re2 $5 {[%cal Re2e4]} Ra4 58. Rd2 $11) 57... Ra5 {[%emt 0:00:41]} 58. Bd6 {[%emt 0:00:38]} Ra6 {[%emt 0:02:03]} 59. Be5 {[%emt 0:00:27]} Bxc6 {[%emt 0:00:15]} 60. g3 {[%emt 0:00:34]} Rg5 {[%emt 0:00:38]} 61. Bf4 {[%emt 0:00:22]} Rg6 {[%emt 0:01:12]} 62. Kg1 {[%emt 0:00:12]} Re6 {[%emt 0:01:27]} 63. Kf2 {[%emt 0:00:14]} Ra3 {[%emt 0:00:14]} 64. Kg1 {[%emt 0:00:38]} Rf3 $15 {[%emt 0:01:11]} 65. Rd1 {[%emt 0:00:29]} h5 {[%emt 0:00:40]} 66. Rf1 {[%emt 0:00:18]} Rc3 {[%emt 0:00:43]} 67. Rf2 {[%emt 0:00:31]} Kg6 {[%emt 0:03:44]} 68. Rd2 {[%emt 0:00:34]} Rc1+ {[%emt 0:01:32]} 69. Kf2 {[%emt 0:00:04]} Rc4 {[%emt 0:00:21]} 70. Re2 {[%emt 0:01:01]} Rxe2+ {[%emt 0:01:14]} 71. Kxe2 {[%emt 0:00:01]} Re4+ {[%emt 0:00:11]} 72. Kf2 {[%emt 0:00:37]} Bd5 {[%emt 0:00:42]} 73. Rc5 {[%emt 0:00:18]} Bf7 {[%emt 0:00:12]} 74. Kf3 {[%emt 0:00:34]} Ra4 {[%emt 0:00:14]} 75. Rc6+ {[%emt 0:00:46]} Kf5 {[%emt 0:00:15]} 76. Rc5+ {[%emt 0:00:08]} Kf6 {[%emt 0:00:19]} 77. Be5+ {[%emt 0:00:19]} Kg6 {[%emt 0:00:09]} 78. Bf4 {[%emt 0:01:18]} Ra3+ {[%emt 0:00:51]} 79. Ke4 {[%emt 0:00:17]} Ra6 {[%emt 0:00:12]} 80. Kf3 {[%emt 0:00:39]} Bb3 {[%emt 0:01:43]} 81. Ke4 {[%emt 0:00:37]} Ra4+ {[%emt 0:00:36]} 82. Ke3 {[%emt 0:00:47]} Bd1 {[%emt 0:00:32]} 83. Rc6+ {[%emt 0:00:16]} Kh7 {[%emt 0:00:38]} 84. Rc7 {[%emt 0:00:09]} Ra5 {[%emt 0:00:37]} 85. Ke4 {[%emt 0:00:49]} Ra6 {[%emt 0:01:21]} 86. Be5 {[%emt 0:00:25]} Rg6 {[%emt 0:00:07]} 87. Bf4 {[%emt 0:00:09]} Bg4 {[%emt 0:00:11]} 88. Re7 {[%emt 0:00:16]} Kg8 {[%emt 0:00:22]} 89. Be5 {[%emt 0:00:15]} Kf8 {[%emt 0:00:17]} 90. Ra7 {[%emt 0:00:53]} Bd1 {[%emt 0:01:50]} 91. Ra8+ {[%emt 0:00:25]} Kf7 {[%emt 0:00:11]} 92. Ra7+ {[%emt 0:00:04]} Kg8 {[%emt 0:00:09]} 93. Rc7 {[%emt 0:00:16]} Rg4+ {[%emt 0:00:38]} 94. Kf5 {[%emt 0:00:47]} Bb3 {[%emt 0:00:56]} 95. Bf4 {[%emt 0:00:42]} Kh7 {[%emt 0:01:50]} 96. Rc6 {[%emt 0:01:08]} Bf7 {[%emt 0:00:57]} 97. Rc7 {[%emt 0:00:08]} Bg6+ {[%emt 0:00:19]} 98. Ke5 {[%emt 0:00:03]} h4 {[%emt 0:02:36]} 99. gxh4 {[%emt 0:00:05]} Rxh4 {[%emt 0:00:07]} 100. Ra7 {[%emt 0:00:24]} Rh1 {[%emt 0:00:44]} 101. Kd4 {[%emt 0:00:42]} Rd1+ {[%emt 0:00:12]} 102. Ke3 {[%emt 0:00:23]} Rd3+ {[%emt 0:00:22]} 103. Ke2 {[%emt 0:00:12]} Rd5 {[%emt 0:00:07]} 104. Bc1 {[%emt 0:00:48]} Bf5 {[%emt 0:01:04]} 105. Bb2 {[%emt 0:00:44]} Bd7 {[%emt 0:00:14]} 106. Bc1 {[%emt 0:01:03]} Kg6 {[%emt 0:00:18]} 107. Ra3 {[%emt 0:00:28]} Kh5 {[%emt 0:00:12]} 108. Bd2 {[%emt 0:00:52]} g5 {[%emt 0:00:48]} 109. Be3 {[%emt 0:01:18]} Bg4+ {[%emt 0:02:35]} 110. Kf2 {[%emt 0:00:17]} Rf5+ {[%emt 0:00:08]} 111. Kg2 {[%emt 0:00:04]} Bf3+ {[%emt 0:00:09]} 112. Kg3 {[%emt 0:00:37]} Be4 {[%emt 0:00:38]} 113. Bd2 {[%emt 0:00:12]} Rf1 {[%emt 0:00:13]} 114. Re3 {[%emt 0:01:18]} Rg1+ {[%emt 0:00:56]} 115. Kf2 {[%emt 0:00:09]} Rg2+ {[%emt 0:00:06]} 116. Ke1 {[%emt 0:00:09]} Bf5 {[%emt 0:00:13]} 117. Re2 {[%emt 0:00:23]} Rg1+ {[%emt 0:00:15]} 118. Kf2 {[%emt 0:00:01]} Rd1 {[%emt 0:00:13]} 119. Be3 {[%emt 0:00:48]} g4 {[%emt 0:01:19]} 120. Bf4 {[%emt 0:00:20]} Rd3 {[%emt 0:00:47]} 121. Re3 {[%emt 0:00:17]} Rd2+ {[%emt 0:00:56]} 122. Re2 {[%emt 0:00:05]} Rd7 {[%emt 0:00:08]} 123. Re1 {[%emt 0:00:26]} Kg6 {[%emt 0:00:09]} 124. Rh1 {[%emt 0:00:55]} Rd3 {[%emt 0:00:11]} 125. Be3 {[%emt 0:00:57]} Be4 {[%emt 0:00:45]} 126. Rh6+ {[%emt 0:00:47]} Kg7 {[%emt 0:00:52]} 127. Re6 {[%emt 0:00:16]} Bd5 {[%emt 0:00:08]} 128. Rd6 {[%emt 0:00:59]} g3+ {[%emt 0:01:57]} 129. Ke2 {[%emt 0:01:33]} 1/2-1/2

[Event "1st Welsh Masters 2019"]
[Site "Bridgend"]
[Date "2019.08.29"]
[Round "7.5"]
[White "Toczek, Grzegorz"]
[Black "James, Dai"]
[Result "1-0"]
[ECO "A57"]
[WhiteElo "2246"]
[BlackElo "1858"]
[Annotator "ChessBase"]
[PlyCount "65"]
[EventDate "2019.08.26"]
[EventType "tourn"]
[EventCountry "WLS"]
[SourceTitle "playchess.com"]
[Source "ChessBase"]
[SourceQuality "1"]
[TimeControl "5400+30"]

1. d4 {[%emt 0:00:00]} Nf6 {[%emt 0:00:00]} 2. Nf3 {[%emt 0:00:00]} g6 {[%emt 0:00:11]} 3. c4 {[%emt 0:01:49]} c5 {[%emt 0:00:38]} 4. d5 {[%emt 0:03:16]} b5 {[%emt 0:02:51]} 5. cxb5 {[%emt 0:03:53]} d6 {[%emt 0:03:30]} 6. Nc3 {[%emt 0:00:08]} a6 {[%emt 0:00:51]} 7. e4 {[%emt 0:00:54]} axb5 {[%emt 0:00:48]} 8. Bxb5+ {[%emt 0:00:05]} Bd7 {[%emt 0:00:19]} 9. Bd3 {[%emt 0:00:46]} Bg7 {[%emt 0:00:13]} 10. h3 {[%emt 0:05:07]} O-O {[%emt 0:04:59]} 11. Qe2 {[%emt 0:02:15]} Bc8 {[%emt 0:03:58]} 12. O-O {[%emt 0:10:50]} Ba6 {[%emt 0:05:28]} 13. Nb5 {[%emt 0:06:36]} Nbd7 {[%emt 0:03:46]} 14. a4 {[%emt 0:03:47]} Ne8 {[%emt 0:05:07]} 15. Bg5 {[%emt 0:04:59]} h6 {[%emt 1:04:51]} 16. Bh4 {[%emt 0:00:21]} Ne5 {[%emt 0:00:00]} 17. Nxe5 {[%emt 0:00:06]} Bxe5 {[%emt 0:00:00]} 18. f4 {[%emt 0:02:26]} Bg7 {[%emt 0:00:00]} 19. Bc4 {[%emt 0:04:00]} Nc7 {[%emt 0:00:00]} 20. Rad1 {[%emt 0:07:29]} Qd7 {[%emt 0:00:00]} 21. e5 {[%emt 0:00:30]} Nxb5 {[%emt 0:00:00]} 22. axb5 {[%emt 0:00:10]} Bb7 {[%emt 0:00:00]} 23. e6 {[%emt 0:02:09]} fxe6 {[%emt 0:00:00]} 24. Qg4 {[%emt 0:03:30]} Kh7 {[%emt 0:00:00]} 25. Rde1 {[%emt 0:05:11]} Ra4 {[%emt 0:00:00]} 26. b3 {[%emt 0:06:33]} Ra2 {[%emt 0:00:00]} 27. Rxe6 {[%emt 0:00:10]} Bf6 {[%emt 0:00:00]} 28. Rfe1 {[%emt 0:01:36]} Rf7 {[%emt 0:00:00]} 29. Bxf6 {[%emt 0:04:55]} exf6 {[%emt 0:00:00]} 30. Bd3 {[%emt 0:01:06]} Rg7 {[%emt 0:00:00]} 31. Bxg6+ {[%emt 0:00:12]} Rxg6 {[%emt 0:00:00]} 32. Re7+ {[%emt 0:00:04]} Rg7 {[%emt 0:00:00]} 33. Qxg7# {[%emt 0:21:37]} 1-0

[Event "1st Welsh Masters 2019"]
[Site "Bridgend"]
[Date "2019.08.29"]
[Round "8.1"]
[White "Turner, Matthew J"]
[Black "James, Dai"]
[Result "1-0"]
[ECO "A38"]
[WhiteElo "2519"]
[BlackElo "1858"]
[Annotator "ChessBase"]
[PlyCount "73"]
[EventDate "2019.08.26"]
[EventType "tourn"]
[EventCountry "WLS"]
[SourceTitle "playchess.com"]
[Source "ChessBase"]
[SourceQuality "1"]
[TimeControl "5400+30"]

1. Nf3 {[%emt 0:00:00]} Nf6 {[%emt 0:00:01]} 2. g3 {[%emt 0:00:00]} g6 {[%emt 0:00:39]} 3. Bg2 {[%emt 0:00:46]} Bg7 {[%emt 0:00:55]} 4. O-O {[%emt 0:00:42]} c5 {[%emt 0:03:25]} 5. c4 {[%emt 0:01:49]} Nc6 {[%emt 0:00:50]} 6. Nc3 {[%emt 0:00:21]} d5 {[%emt 0:02:11]} 7. d4 {[%emt 0:02:39]} dxc4 {[%emt 0:07:26]} 8. dxc5 {[%emt 0:03:04]} Qa5 {[%emt 0:04:02]} 9. Qa4 {[%emt 0:24:09]} Qxa4 {[%emt 0:14:07]} 10. Nxa4 {[%emt 0:00:08]} O-O {[%emt 0:00:04]} 11. Bf4 {[%emt 0:02:31]} Nd5 {[%emt 0:04:20]} 12. Rac1 {[%emt 0:01:32]} Nxf4 {[%emt 0:04:08]} 13. gxf4 {[%emt 0:00:07]} Be6 {[%emt 0:04:34]} 14. Ng5 {[%emt 0:02:53]} Bd7 {[%emt 0:05:44]} 15. Rfd1 {[%emt 0:01:40]} Nd4 {[%emt 0:03:59]} 16. Rxd4 {[%emt 0:00:59]} Bxd4 {[%emt 0:00:30]} 17. Bxb7 {[%emt 0:02:28]} Rab8 {[%emt 0:10:03]} 18. c6 {[%emt 0:00:38]} Bc8 {[%emt 0:01:12]} 19. Rxc4 {[%emt 0:00:38]} Bb6 {[%emt 0:02:54]} 20. Nxb6 {[%emt 0:02:43]} axb6 {[%emt 0:00:43]} 21. Bxc8 {[%emt 0:00:05]} Rfxc8 {[%emt 0:01:26]} 22. Nf3 {[%emt 0:00:09]} b5 {[%emt 0:01:25]} 23. Rc5 {[%emt 0:00:31]} Rb6 {[%emt 0:01:07]} 24. Nd4 {[%emt 0:00:40]} b4 {[%emt 0:00:41]} 25. e3 {[%emt 0:01:04]} f6 {[%emt 0:01:37]} 26. Kf1 {[%emt 0:03:39]} Kf7 {[%emt 0:01:02]} 27. Ke2 {[%emt 0:01:08]} Rc7 {[%emt 0:03:54]} 28. Kd3 {[%emt 0:00:56]} Ra6 {[%emt 0:00:56]} 29. Kc4 {[%emt 0:00:40]} Rxa2 {[%emt 0:00:19]} 30. Kb3 {[%emt 0:00:10]} Ra6 {[%emt 0:00:14]} 31. Kxb4 {[%emt 0:00:21]} Rb6+ {[%emt 0:00:24]} 32. Kc3 {[%emt 0:03:26]} e6 {[%emt 0:01:12]} 33. b4 {[%emt 0:00:47]} Ke7 {[%emt 0:01:19]} 34. b5 {[%emt 0:00:38]} Kd6 {[%emt 0:00:11]} 35. Kb4 {[%emt 0:00:30]} Ra7 {[%emt 0:00:49]} 36. Rc2 {[%emt 0:01:55]} Rc7 {[%emt 0:00:41]} 37. Ka5 {[%emt 0:01:32]} 1-0

[Event "1st Welsh Masters 2019"]
[Site "Bridgend"]
[Date "2019.08.29"]
[Round "8.2"]
[White "Rudd, Jack"]
[Black "Toczek, Grzegorz"]
[Result "1-0"]
[ECO "A67"]
[WhiteElo "2281"]
[BlackElo "2246"]
[Annotator "NA"]
[PlyCount "117"]
[EventDate "2019.08.26"]
[EventType "tourn"]
[EventCountry "WLS"]
[SourceTitle "playchess.com"]
[Source "ChessBase"]
[SourceQuality "1"]
[TimeControl "5400+30"]

1. d4 {[%emt 0:00:00]} Nf6 {[%emt 0:00:00]} 2. c4 {[%emt 0:00:00]} c5 {[%emt 0:00:00]} 3. d5 {[%emt 0:00:00]} e6 {[%emt 0:00:00]} 4. Nc3 {[%emt 0:00:00]} exd5 {[%emt 0:00:04]} 5. cxd5 {[%emt 0:00:00]} d6 {[%emt 0:00:05]} 6. e4 {[%emt 0:00:03]} g6 {[%emt 0:00:13]} 7. f4 {[%emt 0:00:05]} Bg7 {[%emt 0:00:05]} 8. Bb5+ {[%emt 0:00:05]} Nfd7 {[%emt 0:00:05]} 9. a4 {[%emt 0:00:07]} O-O {[%emt 0:00:57]} 10. Nf3 {[%emt 0:00:21]} Na6 {[%emt 0:00:06]} 11. O-O {[%emt 0:00:08]} Nc7 {[%emt 0:00:09]} 12. Bd3 {[%emt 0:00:49]} a6 {[%emt 0:00:37]} 13. Nd2 {[%emt 0:00:19]} Rb8 {[%emt 0:04:29]} 14. Nc4 {[%emt 0:00:31]} Nf6 {[%emt 0:14:44]} 15. e5 {[%emt 0:01:41]} dxe5 {[%emt 0:02:37]} 16. d6 {[%emt 0:00:21]} Nce8 {[%emt 0:01:01]} 17. fxe5 {[%emt 0:00:10]} Ng4 {[%emt 0:00:04]} 18. Qe2 {[%emt 0:01:48]} b5 {[%emt 0:00:14]} 19. axb5 {[%emt 0:00:16]} axb5 {[%emt 0:00:03]} 20. Na5 {[%emt 0:01:25]} c4 {[%emt 0:03:57]} 21. Be4 {[%emt 0:00:09]} Bxe5 {[%emt 0:13:09]} 22. h3 {[%emt 0:00:35]} Nxd6 {[%emt 0:01:46]} 23. hxg4 {[%emt 0:01:53]} Qh4 {[%emt 0:05:30]} 24. Bf4 {[%emt 0:00:14]} Bd4+ {[%emt 0:01:34]} 25. Rf2 {[%emt 0:01:40]} Nxe4 {[%emt 0:03:36]} 26. Nxe4 {[%emt 0:00:16]} Bxg4 {[%emt 0:00:50]} 27. Qd2 {[%emt 0:01:02]} Rbd8 {[%emt 0:04:12]} 28. Nc6 {[%emt 0:02:02]} Bb6 {[%emt 0:05:24]} 29. Nxd8 {[%emt 0:02:37]} Rxd8 {[%emt 0:00:04]} 30. Bg5 {[%emt 0:01:28]} Rd5 {[%emt 0:39:25]} 31. Qd3 Rxd3 {[%emt 0:00:00]} 32. Bxh4 {[%emt 0:00:39]} Rd1+ {[%emt 0:00:00]} 33. Rxd1 {[%emt 0:00:15]} Bxd1 {[%emt 0:00:00]} 34. Nc3 {[%emt 0:00:33]} Bc2 {[%emt 0:00:00]} 35. Nxb5 {[%emt 0:00:16]} f5 {[%emt 0:00:00]} 36. Bf6 {[%emt 0:00:29]} Bxf2+ {[%emt 0:00:00]} 37. Kxf2 {[%emt 0:00:06]} Kf7 {[%emt 0:00:00]} 38. Bg5 {[%emt 0:00:28]} Kg7 {[%emt 0:00:00]} 39. Nd6 {[%emt 0:00:33]} Bd3 {[%emt 0:00:00]} 40. Ke3 {[%emt 0:00:12]} h6 {[%emt 0:00:00]} 41. Be7 {[%emt 0:00:14]} Bf1 {[%emt 0:00:00]} 42. g3 {[%emt 0:00:08]} Kg8 {[%emt 0:00:00]} 43. Kd4 {[%emt 0:00:35]} Kg7 {[%emt 0:00:00]} 44. Kd5 {[%emt 0:00:30]} Bd3 {[%emt 0:00:00]} 45. Nxc4 {[%emt 0:00:48]} g5 {[%emt 0:00:00]} 46. Ne5 {[%emt 0:00:23]} Be4+ {[%emt 0:00:00]} 47. Kd4 {[%emt 0:00:36]} Bb7 {[%emt 0:00:00]} 48. b4 {[%emt 0:00:16]} f4 {[%emt 0:00:00]} 49. gxf4 {[%emt 0:00:05]} gxf4 {[%emt 0:00:00]} 50. b5 {[%emt 0:00:12]} f3 {[%emt 0:00:00]} 51. Ke3 {[%emt 0:00:20]} h5 {[%emt 0:00:00]} 52. Bh4 {[%emt 0:01:11]} Kh6 {[%emt 0:00:00]} 53. Kd4 {[%emt 0:02:05]} f2 {[%emt 0:00:00]} 54. Bxf2 {[%emt 0:00:09]} Kg5 {[%emt 0:00:00]} 55. Kc5 {[%emt 0:00:17]} Kf5 {[%emt 0:00:00]} 56. Kd6 {[%emt 0:00:12]} Bg2 {[%emt 0:00:00]} 57. Nc6 {[%emt 0:00:26]} Bf1 {[%emt 0:00:00]} 58. b6 {[%emt 0:00:07]} Ba6 {[%emt 0:00:00]} 59. Kc7 {[%emt 0:00:07]} 1-0

[Event "1st Welsh Masters 2019"]
[Site "Bridgend"]
[Date "2019.08.29"]
[Round "8.3"]
[White "Taylor, Adam C"]
[Black "Willow, Jonah B"]
[Result "1/2-1/2"]
[ECO "D11"]
[WhiteElo "2402"]
[BlackElo "2326"]
[Annotator "NA"]
[PlyCount "92"]
[EventDate "2019.08.26"]
[EventType "tourn"]
[EventCountry "WLS"]
[SourceTitle "playchess.com"]
[Source "ChessBase"]
[SourceQuality "1"]
[TimeControl "5400+30"]

1. d4 {[%emt 0:00:00]} d5 {[%emt 0:01:12]} 2. Nf3 {[%emt 0:01:08]} Nf6 {[%emt 0:00:48]} 3. g3 {[%emt 0:01:06]} Bg4 {[%emt 0:01:02]} 4. Bg2 {[%emt 0:00:52]} e6 {[%emt 0:00:34]} 5. O-O {[%emt 0:06:07]} Nbd7 {[%emt 0:00:53]} 6. c4 {[%emt 0:04:53]} c6 {[%emt 0:04:38]} 7. b3 {[%emt 0:00:47]} Bd6 {[%emt 0:01:28]} 8. Bb2 {[%emt 0:03:14]} O-O {[%emt 0:00:52]} 9. Nbd2 {[%emt 0:00:20]} Re8 {[%emt 0:07:18]} 10. Ne5 {[%emt 0:10:23]} Bh5 {[%emt 0:03:15]} 11. Ndf3 {[%emt 0:01:49]} Ne4 {[%emt 0:03:50]} 12. Nxd7 {[%emt 0:13:08]} Qxd7 {[%emt 0:00:06]} 13. Ne5 {[%emt 0:00:05]} Qe7 {[%emt 0:04:38]} 14. Qd3 {[%emt 0:08:31]} f6 {[%emt 0:05:15]} 15. Nf3 {[%emt 0:00:13]} Ba3 {[%emt 0:03:49]} 16. Bxa3 {[%emt 0:03:03]} Qxa3 {[%emt 0:01:30]} 17. Nd2 {[%emt 0:00:07]} Nxd2 {[%emt 0:02:29]} 18. Qxd2 {[%emt 0:00:06]} a5 {[%emt 0:01:15]} 19. Rac1 {[%emt 0:03:02]} Qb4 {[%emt 0:02:51]} 20. Rfd1 {[%emt 0:07:45]} Bg6 {[%emt 0:01:58]} 21. Qc3 {[%emt 0:01:28]} Rad8 {[%emt 0:05:47]} 22. Bf3 {[%emt 0:01:31]} Qxc3 {[%emt 0:05:57]} 23. Rxc3 {[%emt 0:00:06]} e5 {[%emt 0:00:12]} 24. cxd5 {[%emt 0:01:11]} e4 {[%emt 0:00:38]} 25. Bg2 {[%emt 0:01:41]} Rxd5 {[%emt 0:00:05]} 26. e3 {[%emt 0:00:22]} Kf8 {[%emt 0:02:22]} 27. Bf1 {[%emt 0:01:01]} Bh5 {[%emt 0:02:04]} 28. Rdc1 {[%emt 0:00:10]} Bf3 {[%emt 0:00:39]} 29. Rc5 {[%emt 0:02:51]} Red8 {[%emt 0:01:04]} 30. a3 {[%emt 0:01:04]} Rxc5 {[%emt 0:03:54]} 31. Rxc5 {[%emt 0:00:07]} Rd5 {[%emt 0:00:04]} 32. Bh3 {[%emt 0:07:07]} Bd1 {[%emt 0:11:07]} 33. b4 {[%emt 0:01:42]} axb4 {[%emt 0:00:15]} 34. axb4 {[%emt 0:00:17]} Rd8 {[%emt 0:15:26]} 35. Bf5 {[%emt 0:00:44]} Bf3 {[%emt 0:00:04]} 36. Bxh7 {[%emt 0:00:11]} Kf7 {[%emt 0:05:03]} 37. Bf5 {[%emt 0:00:19]} Rh8 {[%emt 0:00:22]} 38. d5 {[%emt 0:08:04]} Rd8 {[%emt 0:01:31]} 39. h4 {[%emt 0:05:13]} Rxd5 {[%emt 0:00:22]} 40. Rxd5 {[%emt 0:00:21]} cxd5 {[%emt 0:00:01]} 41. Kf1 {[%emt 0:00:32]} Ke7 {[%emt 0:00:19]} 42. Ke1 {[%emt 0:00:14]} Kd6 {[%emt 0:00:27]} 43. Kd2 {[%emt 0:00:07]} Ke5 {[%emt 0:00:31]} 44. Bc8 {[%emt 0:00:06]} b6 {[%emt 0:00:03]} 45. Kc3 {[%emt 0:00:37]} Be2 {[%emt 0:00:07]} 46. Bb7 {[%emt 0:03:38]} Bf1 {[%emt 0:04:55]} 1/2-1/2

[Event "1st Welsh Masters 2019"]
[Site "Bridgend"]
[Date "2019.08.29"]
[Round "8.4"]
[White "Waddington, Mike P"]
[Black "Kett, Tim"]
[Result "1/2-1/2"]
[ECO "A05"]
[WhiteElo "2023"]
[BlackElo "2245"]
[Annotator "NA"]
[PlyCount "64"]
[EventDate "2019.08.26"]
[EventType "tourn"]
[EventCountry "WLS"]
[SourceTitle "playchess.com"]
[Source "ChessBase"]
[SourceQuality "1"]
[TimeControl "5400+30"]

1. b3 {[%emt 1:30:30]} Nf6 {[%emt 1:30:30]} 2. Bb2 {[%emt 0:00:30]} g6 {[%emt 0:00:30]} 3. e4 {[%emt 0:00:00]} d6 {[%emt 0:00:00]} 4. Nf3 {[%emt 0:00:00]} Bg7 {[%emt 0:00:00]} 5. d3 {[%emt 0:00:00]} O-O {[%emt 0:00:00]} 6. Be2 {[%emt 0:00:00]} c5 {[%emt 0:00:00]} 7. O-O {[%emt 0:00:00]} Nc6 {[%emt 0:00:00]} 8. Nbd2 {[%emt 0:00:00]} b6 {[%emt 0:00:00]} 9. a4 {[%emt 0:00:00]} Bb7 {[%emt 0:00:00]} 10. Nc4 {[%emt 0:00:00]} d5 {[%emt 0:00:00]} 11. exd5 {[%emt 0:00:00]} Nxd5 {[%emt 0:00:00]} 12. Bxg7 {[%emt 0:00:00]} Kxg7 {[%emt 0:00:00]} 13. Qd2 {[%emt 0:00:00]} Qc7 {[%emt 0:00:00]} 14. Rfe1 {[%emt 0:00:00]} Rad8 {[%emt 0:00:00]} 15. Bf1 {[%emt 0:00:00]} Nd4 {[%emt 0:00:00]} 16. Nxd4 {[%emt 0:00:00]} cxd4 {[%emt 0:00:00]} 17. Re4 {[%emt 0:00:00]} Nf6 {[%emt 0:00:00]} 18. Rh4 {[%emt 0:00:00]} Rd5 {[%emt 0:00:00]} 19. Qh6+ {[%emt 0:00:00]} Kg8 {[%emt 0:00:00]} 20. Re1 {[%emt 0:00:00]} Bc8 {[%emt 0:00:00]} 21. f4 {[%emt 0:00:00]} Rh5 {[%emt 0:00:00]} 22. Rxh5 {[%emt 0:00:00]} Nxh5 {[%emt 0:00:00]} 23. g3 {[%emt 0:00:00]} Bb7 {[%emt 0:00:00]} 24. Re2 {[%emt 0:00:00]} Nf6 {[%emt 0:00:00]} 25. Qg5 {[%emt 0:00:00]} Rd8 {[%emt 0:00:00]} 26. Qe5 {[%emt 0:00:00]} Qxe5 {[%emt 0:00:00]} 27. Rxe5 {[%emt 0:00:00]} Kf8 {[%emt 0:00:00]} 28. Bg2 {[%emt 0:00:00]} Bxg2 {[%emt 0:00:00]} 29. Kxg2 {[%emt 0:00:00]} Nd5 {[%emt 0:00:00]} 30. Kf3 {[%emt 0:00:00]} Nb4 {[%emt 0:00:00]} 31. Na3 {[%emt 0:00:00]} Rc8 {[%emt 0:00:00]} 32. Re2 {[%emt 0:00:00]} f5 {[%emt 0:00:00]} 1/2-1/2

[Event "1st Welsh Masters 2019"]
[Site "Bridgend"]
[Date "2019.08.29"]
[Round "8.5"]
[White "Varley, Peter"]
[Black "Arkell, Keith C"]
[Result "0-1"]
[ECO "C11"]
[WhiteElo "2171"]
[BlackElo "2445"]
[Annotator "NA"]
[PlyCount "50"]
[EventDate "2019.08.26"]
[EventType "tourn"]
[EventCountry "WLS"]
[SourceTitle "playchess.com"]
[Source "ChessBase"]
[SourceQuality "1"]
[TimeControl "5400+30"]

1. d4 {[%emt 0:00:00]} e6 {[%emt 0:01:31]} 2. e4 {[%emt 0:00:00]} d5 {[%emt 0:00:04]} 3. Nc3 {[%emt 0:00:00]} Nf6 {[%emt 0:00:08]} 4. e5 {[%emt 0:00:05]} Nfd7 {[%emt 0:00:05]} 5. f4 {[%emt 0:00:09]} c5 {[%emt 0:00:16]} 6. Nf3 {[%emt 0:00:10]} Nc6 {[%emt 0:00:05]} 7. Be3 {[%emt 0:00:13]} a6 {[%emt 0:01:16]} 8. Qd2 {[%emt 0:03:08]} Be7 {[%emt 0:01:33]} 9. dxc5 {[%emt 0:02:48]} Nxc5 {[%emt 0:00:13]} 10. Qf2 {[%emt 0:03:30]} Qa5 {[%emt 0:00:55]} 11. O-O-O {[%emt 0:01:21]} Ne4 {[%emt 0:02:28]} 12. Nxe4 {[%emt 0:02:13]} dxe4 {[%emt 0:00:05]} 13. Nd2 {[%emt 0:02:50]} Qxa2 {[%emt 0:02:13]} 14. Bc4 {[%emt 0:07:12]} Qa1+ {[%emt 0:00:34]} 15. Nb1 {[%emt 0:00:08]} b5 {[%emt 0:07:40]} 16. Be2 {[%emt 0:07:10]} O-O {[%emt 0:11:16]} 17. Bc5 {[%emt 0:00:46]} b4 {[%emt 0:01:15]} 18. h4 {[%emt 0:12:38]} Rb8 {[%emt 0:07:07]} 19. Bxe7 {[%emt 0:03:51]} Nxe7 {[%emt 0:00:05]} 20. Qa7 {[%emt 0:00:54]} Nc6 {[%emt 0:22:13]} 21. Qe3 {[%emt 0:01:10]} Ne7 {[%emt 0:11:06]} 22. Qa7 {[%emt 0:00:14]} Bb7 {[%emt 0:01:45]} 23. Rd7 {[%emt 0:05:27]} Nc6 {[%emt 0:00:36]} 24. Qb6 {[%emt 0:04:34]} Na5 {[%emt 0:01:42]} 25. Qxb4 {[%emt 0:09:28]} Bc6 {[%emt 0:00:55]} 0-1